bitfinex/quotes_ETHUSD_20240916
["timestamp","ask_amount","ask_price","bid_price","bid_amount"]
[1726508592966,0.0375344,2283.7,2283.6,18.0416845]
[1726508593166,0.0375344,2283.7,2283.6,26.3776507]
[1726508593542,0.0375344,2283.7,2283.6,18.4810845]
[1726508593745,0.0375344,2283.7,2283.6,26.8170507]
[1726508594268,7.4,2284.3,2283.6,26.8170507]
[1726508594269,7.4,2284.3,2284.2,8.7558]
[1726508594481,0.0375344,2284.4,2284.3,4.3777]
[1726508594829,0.0375344,2284.4,2284.3,4.45115703]
[1726508595773,0.0375344,2284.4,2284.3,8.82885703]
[1726508596427,0.0375344,2284.4,2284.3,10.10743435]
[1726508597980,0.0375344,2284.4,2284.3,8.82885703]
[1726508599300,0.0375344,2284.4,2284.3,4.45115703]
[1726508600489,2.3026344,2284.4,2284.3,0.07345703]
[1726508601067,2.3026344,2284.4,2284.3,0.07319839]
[1726508601262,2.3026344,2284.4,2284.2,4.3778]
[1726508601599,2.3026344,2284.4,2284.3,0.07319839]
[1726508601991,2.53289784,2284.4,2284.1,4.37807]
[1726508602155,2.53289784,2284.4,2284.0,4.37815]
[1726508602352,2.53289784,2284.4,2284.2,0.0732732]
[1726508602594,2.53289784,2284.4,2283.8,4.37855]
[1726508602595,2.4606,2284.2,2283.8,4.37855]
[1726508602895,2.4606,2284.2,2283.9,4.37847]
[1726508603393,2.4606,2284.2,2284.0,4.37816]
[1726508604296,2.4606,2284.2,2283.9,4.37847]
[1726508604297,19.70907853,2284.3,2284.1,4.37808]
[1726508604611,19.70907853,2284.3,2284.2,12.7127162]
[1726508604753,0.0375344,2284.4,2284.3,4.3777]
[1726508605098,0.0375344,2284.4,2284.3,10.02665162]
[1726508606156,0.0375344,2284.4,2284.3,17.40435162]
[1726508607874,0.0375344,2284.4,2284.3,22.33205162]
[1726508608072,0.0375344,2284.4,2284.3,22.77145162]
[1726508613491,7.4375344,2285.0,2284.9,13.12965]
[1726508613692,7.4375344,2285.0,2284.9,20.0865662]
[1726508613693,0.0375344,2285.0,2284.9,20.0865662]
[1726508614199,0.0375344,2285.0,2284.9,25.0131162]
[1726508615267,7.4,2285.6,2285.5,25.42705]
[1726508615462,0.0375344,2285.7,2285.6,16.12563]
[1726508615663,0.0375344,2285.7,2285.6,11.75042]
[1726508615901,0.0375344,2285.7,2285.6,11.82213635]
[1726508616107,0.0375344,2285.7,2285.6,12.28059651]
[1726508616901,2.2892344,2285.7,2285.6,12.28059651]
[1726508617102,2.2892344,2285.7,2285.6,0.07171635]
[1726508617310,2.2892344,2285.7,2285.6,4.44692635]
[1726508617672,2.2892344,2285.7,2285.6,0.07171635]
[1726508618281,2.2892344,2285.7,2285.6,0.0681112]
[1726508618495,2.95562384,2285.7,2285.6,0.0681112]
[1726508618700,2.95562384,2285.7,2285.6,0.06759445]
[1726508619303,2.2892344,2285.7,2285.5,4.37538]
[1726508619570,2.2892344,2285.7,2285.6,0.06759445]
[1726508620276,2.2892344,2285.7,2285.6,4.44280445]
[1726508620695,0.0375344,2285.7,2285.6,8.81801445]
[1726508620971,0.0375344,2285.7,2285.6,10.09550752]
[1726508621217,0.0375344,2285.7,2285.6,8.81801445]
[1726508621402,0.0375344,2285.7,2285.6,0.06759445]
[1726508621713,2.5327344,2285.7,2285.5,4.37531]
[1726508621876,2.5327344,2285.7,2285.6,4.44293012]
[1726508622076,0.0375344,2285.7,2285.6,8.81814012]
[1726508622874,0.0375344,2285.7,2285.6,11.81814012]
[1726508623074,0.0375344,2285.7,2285.6,16.19335012]
[1726508623312,0.0375344,2285.7,2285.6,18.29169901]
[1726508623530,0.0375344,2285.7,2285.6,18.84169901]
[1726508624089,0.0375344,2285.7,2285.6,23.21690901]
[1726508624508,0.0375344,2285.7,2285.6,18.84169901]
[1726508624921,0.0375344,2285.7,2285.6,18.29169901]
[1726508626196,0.0375344,2285.7,2285.6,13.91648901]
[1726508626431,0.0375344,2285.7,2285.6,11.81814012]
[1726508627851,3.68161411,2287.0,2286.1,21.65]
[1726508628143,0.45815754,2287.7,2285.6,7.02463632]
[1726508628307,0.0375344,2290.5,2285.6,7.02463632]
[1726508628308,2.14047122,2291.3,2290.8,2.1]
[1726508628512,0.192,2294.5,2290.8,2.1]
[1726508628513,0.192,2294.5,2293.3,10.82104]
[1726508628857,0.192,2294.5,2294.4,6.45843]
[1726508629151,0.70092453,2294.5,2294.4,20.1444363]
[1726508629309,0.62312488,2294.5,2294.4,0.0607163]
[1726508629503,7.84476736,2294.5,2294.4,0.0607163]
[1726508629716,21.39625993,2294.5,2293.9,0.55]
[1726508629903,17.34662772,2294.4,2294.2,0.55]
[1726508630106,17.34662772,2294.4,2293.3,0.22113485]
[1726508630107,18.77840677,2294.3,2293.0,4.36102]
[1726508630357,17.36886714,2294.2,2293.1,4.96260545]
[1726508630555,0.069652,2295.1,2293.7,0.55]
[1726508630710,17.113396,2295.1,2293.7,3.55]
[1726508630910,1.9364496,2295.0,2293.4,3.0]
[1726508631106,18.9801936,2295.0,2293.5,0.05031269]
[1726508631425,0.36978981,2294.9,2293.6,0.55]
[1726508631749,0.36978981,2294.9,2293.7,0.05016429]
[1726508632454,4.426782,2295.1,2293.8,8.796]
[1726508632455,0.069652,2295.1,2293.8,8.796]
[1726508632655,6.63746,2296.4,2294.5,3.0]
[1726508632856,0.1,2296.6,2294.7,3.0]
[1726508633038,0.1,2295.7,2294.8,1.51713676]
[1726508633368,0.41562314,2295.9,2295.1,0.1]
[1726508633566,0.0764837,2296.5,2294.8,0.04934856]
[1726508633567,4.35543,2296.0,2295.3,0.1]
[1726508633714,0.0764837,2296.5,2295.7,0.1]
[1726508633912,4.35388,2296.8,2296.0,0.1]
[1726508634111,4.35345,2297.1,2296.0,0.1]
[1726508634428,0.45445647,2297.2,2296.4,0.1]
[1726508634630,4.35315,2297.2,2296.5,0.1]
[1726508634825,4.35393,2296.8,2296.1,0.1]
[1726508635137,0.015,2297.9,2296.0,0.085]
[1726508635138,4.35369,2296.9,2296.3,0.1]
[1726508635337,0.435393,2296.7,2296.3,0.1]
[1726508635657,0.015,2297.0,2296.1,0.1]
[1726508635869,2.2827,2296.9,2296.1,0.1]
[1726508636166,0.22977,2296.8,2295.8,0.1]
[1726508636373,0.55,2296.7,2295.8,0.1]
[1726508636552,0.55,2296.7,2295.9,0.04692322]
[1726508636851,5.63556626,2296.6,2295.9,0.04692322]
[1726508637058,0.22977,2296.8,2296.0,0.1]
[1726508637249,0.22977,2296.8,2296.2,0.185]
[1726508637644,2.2827,2296.9,2296.5,0.185]
[1726508638025,2.2827,2296.9,2296.6,0.23140502]
[1726508638567,0.015,2297.0,2296.8,0.185]
[1726508639062,0.015,2297.0,2296.9,0.04618303]
[1726508639229,0.015,2297.0,2296.8,0.185]
[1726508639439,0.015,2297.0,2296.9,0.04618303]
[1726508639636,0.015,2297.0,2296.3,0.1]
[1726508640024,2.3723,2296.9,2296.4,0.05712559]
[1726508640335,2.3723,2296.9,2295.5,0.085]
[1726508640336,4.35429,2296.6,2295.5,0.085]
[1726508640640,0.55,2296.5,2295.5,0.085]
[1726508640977,7.35483,2296.3,2295.5,0.085]
[1726508641320,0.490409,2296.5,2295.7,0.1]
[1726508641625,4.59276,2296.8,2296.0,0.1]
[1726508641961,0.696506,2296.7,2296.0,0.1]
[1726508642163,0.23873,2296.8,2296.0,0.1]
[1726508642536,0.23873,2296.8,2296.4,0.1]
[1726508642737,2.3723,2296.9,2296.7,0.1]
[1726508642957,2.3723,2296.9,2296.1,0.1]
[1726508643275,0.23873,2296.8,2295.9,0.1]
[1726508643437,0.697968,2296.8,2295.7,0.1]
[1726508643626,0.697968,2296.8,2295.8,0.1]
[1726508643822,4.3532,2297.2,2295.6,0.085]
[1726508643823,4.35443,2296.6,2295.6,0.1]
[1726508644046,4.35443,2296.6,2295.1,0.185]
[1726508644047,4.35534,2296.1,2295.1,0.185]
[1726508644295,4.35617,2295.6,2294.7,0.1]
[1726508644422,4.35617,2295.6,2294.9,0.1]
[1726508644622,7.35579,2295.8,2294.9,0.185]
[1726508644623,0.435617,2295.5,2294.9,0.185]
[1726508644934,3.0,2295.8,2295.1,0.1]
[1726508645136,0.3,2295.7,2295.1,0.1]
[1726508645630,3.0,2296.2,2295.3,0.185]
[1726508646019,4.36844,2297.1,2295.3,0.185]
[1726508646020,3.0,2296.6,2295.3,0.1]
[1726508646227,0.735414,2296.5,2295.3,0.1]
[1726508646459,3.0,2296.6,2295.3,0.1]
[1726508646460,2.2763,2295.9,2295.3,0.1]
[1726508647651,2.3206,2296.5,2295.5,0.085]
[1726508647972,4.35458,2296.5,2295.8,0.1]
[1726508648135,0.870887,2296.5,2296.0,0.1]
[1726508648343,4.35424,2296.7,2295.7,0.085]
[1726508648344,4.35424,2296.7,2295.8,0.1]
[1726508648550,0.435424,2296.6,2296.0,0.1]
[1726508649180,8.70845,2296.7,2296.0,0.1]
[1726508649327,4.3543,2296.6,2296.0,0.1]
[1726508649522,4.35421,2296.7,2296.0,0.1]
[1726508649721,4.35421,2296.7,2295.8,0.085]
[1726508649722,0.51328981,2297.6,2295.8,0.1]
[1726508649944,8.70834,2296.7,2295.8,0.1]
[1726508650282,4.3541,2296.7,2295.8,0.1]
[1726508650495,4.35166,2298.0,2296.3,0.1]
[1726508650663,4.3532,2297.2,2296.3,0.1]
[1726508650860,2.43,2297.4,2296.9,0.1]
[1726508651546,4.787699,2297.6,2297.2,0.1]
[1726508651547,0.435219,2297.6,2297.2,0.1]
[1726508651770,2.4417,2297.9,2297.2,0.1]
[1726508652090,2.4417,2297.9,2296.2,3.0]
[1726508652091,2.4417,2297.9,2297.4,0.1]
[1726508652244,4.3521,2297.8,2297.4,0.1]
[1726508652645,4.352,2297.8,2297.4,0.1]
[1726508652873,4.35131,2298.2,2297.4,0.1]
[1726508653079,4.35174,2298.0,2297.4,0.1]
[1726508653396,3.0,2298.3,2297.4,0.1]
[1726508653542,4.3509,2298.4,2297.8,0.1]
[1726508653742,0.435093,2298.3,2297.8,0.1]
[1726508653990,0.0764837,2299.2,2297.8,0.185]
[1726508653991,4.34955,2299.1,2297.8,0.185]
[1726508654204,0.57477351,2299.2,2297.8,0.185]
[1726508654504,0.57477351,2299.2,2295.8,0.1]
[1726508654505,4.35477,2296.4,2295.8,0.1]
[1726508654707,4.35325,2297.2,2295.8,0.1]
[1726508654989,0.084652,2297.7,2295.6,0.1]
[1726508654990,4.35514,2296.2,2295.6,0.1]
[1726508655140,4.35362,2297.0,2295.3,2.405848]
[1726508655141,4.35583,2295.8,2295.3,2.3905]
[1726508655346,4.35592,2295.8,2295.2,0.1]
[1726508655677,4.35384,2296.9,2295.4,0.1]
[1726508655678,4.35567,2295.9,2295.4,0.1]
[1726508655988,4.35597,2295.7,2295.1,0.0764837]
[1726508656605,3.47540409,2295.9,2294.5,0.1]
[1726508656745,2.4719,2296.2,2295.2,0.015348]
[1726508656944,2.4719,2296.2,2295.3,0.1]
[1726508657187,4.35572,2295.9,2295.3,0.1]
[1726508657422,4.35526,2296.1,2295.4,0.015348]
[1726508657423,4.35535,2296.1,2295.4,0.015348]
[1726508657621,4.35573,2295.9,2295.3,0.1]
[1726508657821,4.35573,2295.9,2295.2,0.015348]
[1726508657822,4.35582,2295.8,2295.2,0.015348]
[1726508657975,4.35573,2295.9,2295.2,0.015348]
[1726508657976,4.3554,2296.0,2295.2,0.015348]
[1726508658175,4.35562,2295.9,2295.0,0.015348]
[1726508658517,4.35584,2295.8,2295.3,0.1]
[1726508658756,4.35526,2296.1,2295.3,0.1]
[1726508659013,4.35542,2296.0,2295.3,0.1]
[1726508659214,4.35455,2296.5,2295.7,0.1]
[1726508659369,4.35477,2296.4,2295.7,0.1]
[1726508659569,4.35502,2296.2,2295.7,0.1]
[1726508660011,4.35491,2296.3,2295.6,0.015348]
[1726508660325,4.35422,2296.7,2296.2,0.015348]
[1726508660626,4.35453,2296.5,2295.9,0.115348]
[1726508661191,2.4893,2296.8,2295.9,0.115348]
[1726508661192,4.35486,2296.3,2295.9,0.115348]
[1726508661394,8.70984,2296.3,2295.9,0.115348]
[1726508661700,4.35449,2296.5,2295.9,0.115348]
[1726508661899,4.35414,2296.7,2295.9,0.115348]
[1726508662100,0.684344,2296.6,2295.9,0.115348]
[1726508662301,3.0,2296.6,2295.4,0.015348]
[1726508662534,4.35554,2296.0,2295.4,0.015348]
[1726508662702,4.3557,2295.9,2295.4,0.015348]
[1726508662900,4.35603,2295.7,2295.4,0.015348]
[1726508663103,4.35502,2296.2,2295.4,0.015348]
[1726508663325,3.0,2296.3,2295.4,0.015348]
[1726508663501,4.35534,2296.1,2295.4,0.015348]
[1726508663701,4.3557,2295.9,2295.5,0.1]
[1726508663905,0.735408,2296.5,2295.5,0.1]
[1726508664141,8.71072,2296.1,2295.5,0.1]
[1726508664305,4.35527,2296.1,2295.5,0.1]
[1726508664495,4.35524,2296.1,2295.5,0.1]
[1726508664702,4.35615,2295.6,2295.4,0.015348]
[1726508664898,4.35615,2295.6,2295.3,0.1]
[1726508664899,4.35653,2295.4,2295.3,0.1]
[1726508665115,4.35653,2295.4,2295.0,0.1]
[1726508665331,4.3564,2295.5,2295.3,0.1]
[1726508665835,4.35692,2295.2,2295.0,0.1]
[1726508665998,4.35684,2295.3,2295.0,0.1]
[1726508666399,4.35693,2295.2,2295.0,0.1]
[1726508666637,4.3571,2295.1,2295.0,0.1]
[1726508666842,4.35734,2295.0,2294.7,0.1]
[1726508667039,4.35767,2294.8,2294.7,0.1]
[1726508667209,4.35786,2294.7,2294.6,0.015348]
[1726508667415,4.35758,2294.9,2294.6,0.015348]
[1726508667614,8.71441,2295.1,2294.6,0.015348]
[1726508667817,4.35741,2295.0,2294.6,0.015348]
[1726508668034,8.1358145,2295.4,2294.5,0.1]
[1726508668344,4.35544,2296.0,2295.7,0.115348]
[1726508668544,2.4399,2296.8,2296.0,0.1]
[1726508668717,4.35502,2296.2,2296.0,0.1]
[1726508668922,4.35484,2296.3,2296.0,0.1]
[1726508669107,4.35554,2296.0,2295.6,0.1]
[1726508669305,4.35554,2296.0,2295.5,0.115348]
[1726508669506,4.791094,2296.0,2295.5,0.115348]
[1726508669945,0.435554,2296.0,2295.5,0.115348]
[1726508670252,4.35477,2296.4,2295.9,0.1]
[1726508670549,4.35436,2296.6,2295.9,0.1]
[1726508670763,4.35495,2296.3,2295.9,0.1]
[1726508671259,8.70989,2296.3,2295.9,0.1]
[1726508671550,4.35495,2296.3,2295.9,0.1]
[1726508671752,4.35495,2296.3,2295.8,0.1]
[1726508671937,4.790635,2296.2,2295.8,0.1]
[1726508672498,0.435495,2296.2,2295.8,0.1]
[1726508672798,4.35524,2296.1,2295.8,0.1]
[1726508673660,8.71063,2296.1,2295.8,0.1]
[1726508673993,4.35531,2296.1,2295.8,0.1]
[1726508674318,8.71513458,2296.1,2296.0,1.76155218]
[1726508674613,8.7108,2296.0,2295.9,0.90600101]
[1726508674754,8.71118,2295.9,2295.8,0.90600101]
[1726508674953,8.71118,2295.9,2295.8,4.07177466]
[1726508675195,4.35559,2295.9,2295.8,3.16577365]
[1726508675402,4.35559,2295.9,2295.8,7.0577699]
[1726508675403,10.02777375,2295.9,2295.8,7.0577699]
[1726508675696,5.67218375,2295.9,2295.8,7.0577699]
[1726508677058,0.435495,2296.2,2295.8,7.94343266]
[1726508677255,4.35481,2296.4,2296.0,1.81296885]
[1726508677504,12.445101,2296.4,2296.3,0.90658735]
[1726508677710,7.35481,2296.4,2296.3,4.072361]
[1726508678175,7.35464,2296.4,2296.3,4.07373539]
[1726508678377,8.090104,2296.4,2296.3,4.07373539]
[1726508678763,12.444744,2296.4,2296.3,3.16671387]
[1726508678962,5.090104,2296.4,2296.3,3.16671387]
[1726508679191,9.444744,2296.4,2296.3,3.16671387]
[1726508679387,5.090104,2296.4,2296.3,3.16671387]
[1726508679607,9.444744,2296.4,2296.3,3.16671387]
[1726508679810,1.285464,2296.4,2296.0,0.90702152]
[1726508680044,4.3554,2296.0,2295.9,0.90702152]
[1726508680252,4.3554,2296.0,2295.9,4.01617755]
[1726508680397,8.7108,2296.0,2295.9,4.01617755]
[1726508680601,12.79688,2296.0,2295.9,3.10915603]
[1726508680797,4.35596,2295.7,2295.6,0.90702152]
[1726508681039,4.08608,2296.0,2295.4,0.90702152]
[1726508681040,4.35634,2295.5,2295.4,0.90702152]
[1726508681253,4.35634,2295.5,2295.2,1.35988102]
[1726508681254,8.71306,2295.4,2295.2,1.0106062]
[1726508681414,8.3210822,2295.8,2295.0,0.115348]
[1726508681753,4.3568,2295.3,2295.1,5.56398309]
[1726508681908,4.35716,2295.1,2294.7,0.015348]
[1726508682117,4.35716,2295.1,2294.5,2.71959855]
[1726508682118,0.43568,2295.3,2294.9,0.015348]
[1726508682342,4.35608,2295.7,2295.1,0.015348]
[1726508682639,4.35608,2295.7,2295.2,5.51644085]
[1726508682841,4.35608,2295.7,2295.3,3.0647985]
[1726508683013,5.833076,2295.7,2295.4,3.06460114]
[1726508683216,5.833076,2295.7,2295.1,0.015348]
[1726508683402,4.35646,2295.5,2295.2,3.06424623]
[1726508683746,4.35639,2295.5,2295.3,3.06424623]
[1726508683946,4.35702,2295.2,2294.7,0.015348]
[1726508684241,4.35726,2295.1,2294.8,5.51795598]
[1726508684428,4.35702,2295.2,2294.9,3.0655311]
[1726508684634,3.0,2295.4,2295.0,3.06559837]
[1726508684948,3.0582,2295.8,2295.1,5.5168735]
[1726508684949,4.356,2295.7,2295.1,5.5168735]
[1726508685097,4.35616,2295.6,2295.2,3.06525344]
[1726508685297,4.35616,2295.6,2295.3,1.22622642]
[1726508685494,4.35647,2295.5,2295.0,0.115348]
[1726508685719,4.822668,2295.5,2295.1,3.06406673]
[1726508685941,0.466198,2295.5,2295.2,3.06406673]
[1726508686111,4.35649,2295.5,2295.3,1.22562669]
[1726508686451,4.3567,2295.4,2295.0,0.115348]
[1726508686594,4.35668,2295.4,2295.1,3.06371466]
[1726508686911,4.35625,2295.6,2295.2,3.06371466]
[1726508687113,3.0582,2295.8,2295.0,4.472498]
[1726508687306,4.35575,2295.9,2295.4,0.015348]
[1726508687502,5.091323,2295.9,2295.4,0.015348]
[1726508687739,7.48428,2296.6,2296.0,0.015348]
[1726508687917,7.4844,2296.6,2296.0,0.015348]
[1726508688118,4.35398,2296.8,2296.2,0.015348]
[1726508688551,4.35427,2296.6,2296.2,0.015348]
[1726508689010,4.35451,2296.5,2296.2,0.015348]
[1726508689209,4.35427,2296.6,2296.2,0.015348]
[1726508689520,8.70865,2296.6,2296.2,0.015348]
[1726508689721,4.35427,2296.6,2296.2,0.015348]
[1726508690137,0.870826,2296.6,2296.2,0.015348]
[1726508690350,7.3542,2296.7,2296.2,0.015348]
[1726508690661,3.13,2297.0,2296.1,0.1]
[1726508690662,3.0,2296.9,2296.1,0.1]
[1726508690801,4.35456,2296.5,2296.1,0.1]
[1726508691161,4.35476,2296.4,2296.1,0.1]
[1726508691623,4.35488,2296.3,2296.1,0.1]
[1726508691945,4.35476,2296.4,2296.1,0.1]
[1726508692151,3.313,2296.9,2296.4,0.015348]
[1726508692449,3.0,2296.7,2296.4,0.015348]
[1726508692742,7.3539,2296.8,2296.4,0.015348]
[1726508692942,4.66683,2296.9,2296.4,0.115348]
[1726508693146,4.66681,2296.9,2296.4,0.115348]
[1726508694117,4.66679,2296.9,2296.4,0.115348]
[1726508694335,4.35388,2296.8,2296.4,0.115348]
[1726508694547,4.35426,2296.6,2296.4,0.115348]
[1726508694724,4.35445,2296.5,2296.4,0.1]
[1726508695070,4.35445,2296.5,2296.2,0.115348]
[1726508695071,4.35456,2296.5,2296.2,0.115348]
[1726508695248,4.35473,2296.4,2296.2,0.115348]
[1726508695430,0.435445,2296.5,2296.2,0.115348]
[1726508695607,4.35454,2296.5,2296.2,0.115348]
[1726508696226,4.35454,2296.5,2296.3,0.1]
[1726508696428,3.0,2296.5,2296.0,0.1]
[1726508696629,4.35502,2296.2,2296.0,0.1]
[1726508697441,4.35502,2296.2,2295.9,0.015348]
[1726508697442,4.35525,2296.1,2295.9,0.015348]
[1726508697815,8.7102,2296.2,2295.9,0.015348]
[1726508698017,5.289079,2296.2,2296.0,0.1]
[1726508698361,9.644209,2296.2,2295.9,0.015348]
[1726508698504,4.3554,2296.0,2295.7,3.012648]
[1726508698708,4.35632,2295.6,2295.2,0.115348]
[1726508698916,4.35631,2295.6,2295.2,0.1]
[1726508699261,4.35654,2295.4,2295.2,0.015348]
[1726508699419,4.35647,2295.5,2295.2,0.015348]
[1726508699624,3.0,2295.6,2295.2,0.015348]
[1726508699828,4.098651,2295.6,2295.2,0.015348]
[1726508700257,4.35612,2295.7,2295.2,0.015348]
[1726508700563,0.63039,2295.8,2295.6,0.1]
[1726508700564,4.35594,2295.8,2295.6,0.1]
[1726508700728,4.35504,2296.2,2295.4,0.015348]
[1726508700729,4.35609,2295.7,2295.4,0.115348]
[1726508700915,4.35533,2296.1,2295.6,0.015348]
[1726508701120,4.35425,2296.7,2296.2,0.115348]
[1726508701358,4.0659,2296.9,2296.2,0.115348]
[1726508701359,4.35446,2296.5,2296.2,0.115348]
[1726508701657,4.35483,2296.3,2296.2,0.115348]
[1726508701863,4.35433,2296.6,2296.0,0.115348]
[1726508702015,4.35603,2295.7,2295.5,0.115348]
[1726508702216,4.35572,2295.9,2295.5,0.115348]
[1726508702415,4.789973,2296.5,2296.0,0.015348]
[1726508702729,4.35437,2296.6,2296.3,0.115348]
[1726508703113,3.9638,2297.2,2296.3,0.115348]
[1726508703114,4.35382,2296.9,2296.3,0.115348]
[1726508703315,3.9638,2297.2,2296.6,0.115348]
[1726508703543,3.9638,2297.2,2296.4,4.35461]
[1726508703544,4.352,2297.8,2297.3,0.1]
[1726508703760,4.3517,2298.0,2297.5,0.015348]
[1726508703960,4.3513,2298.2,2297.8,0.015348]
[1726508704417,3.977,2298.4,2297.7,0.015348]
[1726508704418,4.35169,2298.0,2297.7,0.015348]
[1726508704759,4.35201,2297.8,2297.7,0.015348]
[1726508704933,4.35217,2297.7,2297.6,0.1]
[1726508705130,5.222588,2297.7,2297.6,0.1]
[1726508705334,4.35258,2297.5,2297.1,0.115348]
[1726508705670,4.35286,2297.4,2297.1,0.115348]
[1726508705961,4.35037,2298.7,2297.6,0.1]
[1726508706119,4.35185,2297.9,2297.6,0.115348]
[1726508706519,4.35037,2298.7,2297.6,0.115348]
[1726508706520,4.3521,2297.8,2297.6,0.1]
[1726508706762,0.43521,2297.7,2297.4,0.115348]
[1726508706964,0.43521,2297.7,2297.6,0.015348]
[1726508707327,4.35073,2298.5,2298.1,0.015348]
[1726508707573,4.0585,2299.0,2298.5,0.015348]
[1726508707574,4.35002,2298.9,2298.5,0.015348]
[1726508707722,4.35104,2298.3,2298.2,0.115348]
[1726508707917,4.35077,2298.5,2298.2,0.115348]
[1726508708124,4.75577,2298.9,2297.0,3.4394]
[1726508708125,0.40585,2298.9,2298.6,0.115348]
[1726508708353,4.34986,2299.0,2298.8,0.015348]
[1726508708533,4.34904,2299.4,2298.8,0.015348]
[1726508708840,4.34904,2299.4,2298.6,4.0977]
[1726508708841,4.34908,2299.4,2299.1,0.1]
[1726508709051,4.34824,2299.8,2299.1,0.1]
[1726508709360,4.34688,2300.5,2299.1,4.032948]
[1726508709571,0.0764837,2300.6,2299.1,0.9536028]
[1726508709782,0.0764837,2300.6,2300.4,0.015348]
[1726508709924,0.0764837,2300.6,2300.4,0.115348]
[1726508710125,4.4233237,2300.6,2300.4,0.1]
[1726508710326,0.51881607,2300.6,2300.4,0.115348]
[1726508710633,4.34967,2301.7,2300.4,0.115348]
[1726508710634,0.005,2301.7,2300.5,3.9176]
[1726508710831,0.005,2301.7,2301.6,3.932948]
[1726508711777,0.0764837,2302.0,2301.9,0.015348]
[1726508712444,4.0131,2303.6,2302.9,0.015348]
[1726508712627,4.60049852,2304.1,2303.1,0.015348]
[1726508712828,4.60049852,2304.1,2303.2,0.015348]
[1726508712829,4.34111,2303.6,2303.2,0.015348]
[1726508713046,4.3408,2303.8,2302.9,0.1]
[1726508713232,4.1562,2303.3,2302.2,0.015348]
[1726508713459,4.3435,2302.3,2301.9,0.015348]
[1726508713627,4.34402,2302.1,2301.9,0.115348]
[1726508713845,0.43435,2302.2,2301.9,0.1]
[1726508714049,4.34312,2302.5,2302.0,0.015348]
[1726508714297,4.34308,2302.6,2302.1,0.1]
[1726508714298,4.34342,2302.4,2302.1,0.1]
[1726508714481,0.434308,2302.5,2302.4,0.015348]
[1726508714851,4.34308,2302.6,2302.4,0.015348]
[1726508715050,4.34269,2302.8,2302.4,0.015348]
[1726508715288,8.19007,2303.0,2302.6,0.115348]
[1726508715498,1.253193,2303.0,2302.9,0.015348]
[1726508715647,4.3678837,2303.4,2302.6,0.1]
[1726508715648,4.34261,2302.8,2302.6,0.1]
[1726508715854,4.34261,2302.8,2302.5,0.015348]
[1726508715855,4.3679937,2303.4,2302.5,0.015348]
[1726508716053,4.34238,2302.9,2302.5,0.015348]
[1726508716353,4.34238,2302.9,2300.9,4.34602]
[1726508716354,0.0264837,2303.4,2303.0,0.115348]
[1726508716708,4.34197,2303.1,2303.0,0.1]
[1726508716853,0.434197,2303.1,2303.0,0.1]
[1726508717751,4.34235,2302.9,2302.6,0.115348]
[1726508717989,4.34272,2302.7,2302.0,0.115348]
[1726508718292,4.34194,2303.2,2302.5,0.015348]
[1726508718293,4.34253,2302.8,2302.5,0.015348]
[1726508718500,4.34253,2302.8,2302.7,0.015348]
[1726508718501,8.68506,2302.8,2302.7,0.015348]
[1726508718650,4.34205,2303.1,2302.4,0.1]
[1726508718651,4.34291,2302.6,2302.4,0.1]
[1726508718851,4.777391,2302.5,2302.3,0.015348]
[1726508719092,4.89222,2303.0,2301.9,0.015348]
[1726508719309,4.34442,2301.8,2301.7,0.015348]
[1726508719505,8.68884,2301.8,2301.7,0.015348]
[1726508719807,3.0,2302.3,2301.5,0.015348]
[1726508719808,8.6896,2301.6,2301.5,0.015348]
[1726508719949,8.69074,2301.3,2301.2,0.015348]
[1726508720150,8.69074,2301.3,2301.2,0.115348]
[1726508720467,4.34574,2301.1,2301.0,0.115348]
[1726508720847,4.780314,2301.1,2301.0,0.115348]
[1726508721057,4.34535,2301.4,2301.0,0.115348]
[1726508721351,4.34524,2301.4,2301.3,0.015348]
[1726508721657,3.0,2301.8,2301.7,0.015348]
[1726508721658,4.34442,2301.8,2301.7,0.015348]
[1726508721967,4.3448,2301.6,2301.5,0.1]
[1726508722158,5.213511,2301.7,2301.5,0.1]
[1726508722358,4.34463,2301.7,2301.5,0.1]
[1726508722561,4.34463,2301.7,2301.5,0.015348]
[1726508722762,4.34555,2301.2,2301.1,0.015348]
[1726508723161,8.6911,2301.2,2301.1,0.015348]
[1726508723585,4.3459,2301.1,2300.9,0.015348]
[1726508723778,4.34588,2301.1,2300.9,0.015348]
[1726508724102,4.34506,2301.5,2301.2,0.015348]
[1726508724408,4.34506,2301.5,2299.8,4.34815]
[1726508724409,4.34431,2301.9,2301.8,0.015348]
[1726508724698,4.34431,2301.9,2301.3,3.8199]
[1726508724699,4.34332,2302.4,2302.0,0.015348]
[1726508724895,4.34368,2302.2,2302.0,0.015348]
[1726508725341,4.125,2302.5,2302.0,0.015348]
[1726508725481,0.489222,2302.9,2302.7,0.015348]
[1726508725681,8.13924,2303.2,2302.7,0.015348]
[1726508725992,4.3679037,2303.4,2303.0,0.015348]
[1726508726236,0.43679037,2303.3,2303.2,0.015348]
[1726508726380,0.0264837,2303.4,2303.2,0.015348]
[1726508727549,4.4153337,2304.8,2302.1,4.7608]
[1726508727550,0.0764837,2304.8,2304.0,0.015348]
[1726508727694,0.0764837,2304.8,2302.8,13.106]
[1726508727695,4.33965,2304.4,2303.7,0.015348]
[1726508727899,4.34015,2304.1,2303.5,0.015348]